bitfinex/quotes_ETHUSD_20250215
["timestamp","ask_amount","ask_price","bid_price","bid_amount"]
[1739629509584,0.8014,2699.3,2698.6,4.43247682]
[1739629509779,3.7048,2699.2,2698.6,3.70556]
[1739629510308,3.70494,2699.1,2698.5,5.26825363]
[1739629511109,1.17434878,2699.2,2698.6,3.7056]
[1739629511407,4.87922878,2699.2,2698.6,3.7056]
[1739629511614,0.8,2699.0,2698.3,0.8219]
[1739629511912,0.8,2699.0,2698.0,0.7639]
[1739629511913,3.7059,2698.4,2698.0,0.7639]
[1739629512210,3.70625,2698.2,2697.6,0.7639]
[1739629512518,3.70625,2698.2,2697.9,0.75412801]
[1739629513079,3.70632,2698.1,2697.9,0.75412801]
[1739629513280,3.70618,2698.2,2697.9,0.75412801]
[1739629513710,3.70633,2698.1,2697.6,0.7639]
[1739629513884,3.70659,2697.9,2697.6,0.7639]
[1739629514090,3.70633,2698.1,2697.6,0.7639]
[1739629514519,0.767932,2698.2,2697.6,0.7639]
[1739629514728,3.70646,2698.0,2697.6,0.7639]
[1739629515594,4.25626,2698.2,2697.6,0.7639]
[1739629515793,3.70646,2698.0,2697.6,0.7639]
[1739629516006,3.70661,2697.9,2697.6,0.7639]
[1739629516713,3.70646,2698.0,2697.6,0.7639]
[1739629516926,3.70599,2698.4,2697.7,3.70677]
[1739629517217,3.97319,2698.2,2697.6,4.917896]
[1739629517388,3.97319,2698.2,2697.6,4.47078]
[1739629517721,3.97319,2698.2,2697.6,0.7639]
[1739629517926,3.70645,2698.0,2697.6,0.7639]
[1739629518130,3.7067,2697.9,2697.6,0.7639]
[1739629518419,3.7996678,2698.2,2697.6,4.47089]
[1739629518420,7.67952,2698.2,2697.6,4.47089]
[1739629518722,0.822952,2698.1,2697.6,4.47089]
[1739629518924,0.267,2698.2,2697.6,0.7639]
[1739629519218,0.267,2698.2,2697.8,3.70664]
[1739629520231,3.70594,2698.4,2698.0,0.765]
[1739629520411,0.267,2698.3,2698.0,0.765]
[1739629520580,0.267,2698.3,2698.0,4.47142]
[1739629520787,0.267,2698.3,2698.0,4.47136]
[1739629521094,0.7908,2698.7,2698.2,4.47117]
[1739629521095,0.268,2698.7,2698.2,4.47117]
[1739629521289,3.97349,2698.7,2698.2,0.765]
[1739629522424,3.70568,2698.6,2698.2,0.765]
[1739629522752,4.25543,2698.8,2698.2,4.47107]
[1739629522903,3.70529,2698.9,2698.3,3.70595]
[1739629523088,0.638529,2698.8,2698.3,3.70595]
[1739629523420,0.268,2698.8,2698.3,3.70595]
[1739629523812,0.268,2698.8,2698.3,3.70595]
[1739629524823,3.70498,2699.1,2698.2,0.765]
[1739629525008,3.70498,2699.1,2698.1,0.73623406]
[1739629525009,0.268,2698.9,2698.7,0.765]
[1739629525323,0.268,2698.9,2698.5,4.47075]
[1739629526120,0.268,2698.9,2698.6,3.70561]
[1739629526526,0.268,2698.9,2698.5,0.765]
[1739629526825,3.97324,2698.9,2698.5,0.765]
[1739629527161,5.09432978,2698.9,2698.5,0.765]
[1739629527324,0.268,2698.9,2698.5,0.765]
[1739629527826,4.76405,2698.9,2698.3,4.47092]
[1739629528025,4.76405,2698.9,2698.4,3.70587]
[1739629530699,4.76405,2698.9,2698.5,3.70575]
[1739629530700,1.0588,2698.9,2698.5,3.70575]
[1739629530917,0.268,2698.9,2698.5,3.70567]
[1739629532244,1.112342,2698.9,2698.5,3.70567]
[1739629532940,0.268,2698.9,2698.5,3.70567]
[1739629534045,0.268,2698.9,2698.5,0.8212]
[1739629534243,3.70481,2699.2,2698.7,3.70541]
[1739629534545,0.267,2699.1,2698.7,3.70541]
[1739629534741,0.267,2699.1,2698.8,3.70534]
[1739629535639,3.70466,2699.3,2698.9,0.8212]
[1739629535846,4.789109,2699.3,2698.9,0.8212]
[1739629537013,1.084449,2699.3,2698.9,4.5264]
[1739629537369,0.267,2699.3,2698.9,0.8212]
[1739629537711,3.70481,2699.2,2698.9,0.8212]
[1739629538370,0.267,2699.3,2698.9,0.8212]
[1739629538730,3.97174,2699.3,2698.9,0.8212]
[1739629539644,3.70487,2699.2,2698.9,0.8212]
[1739629539824,3.70487,2699.2,2698.7,5.27052024]
[1739629540145,3.97166,2699.3,2698.8,3.70534]
[1739629541350,3.97166,2699.3,2698.7,5.27044024]
[1739629541554,3.97166,2699.3,2698.7,8.97585024]
[1739629541715,3.97166,2699.3,2698.7,5.27044024]
[1739629542010,3.97166,2699.3,2698.7,8.97583024]
[1739629542866,0.267,2699.3,2698.7,5.27043024]
[1739629543050,3.70481,2699.2,2698.7,8.97583024]
[1739629543549,3.70481,2699.2,2698.7,5.27043024]
[1739629544318,3.70481,2699.2,2698.7,8.97584024]
[1739629544518,3.70481,2699.2,2698.8,3.70534]
[1739629544725,0.267,2699.3,2698.9,3.7052]
[1739629546232,0.266,2699.4,2699.0,0.7718]
[1739629546619,0.266,2699.4,2699.0,4.47685]
[1739629547550,0.266,2699.4,2699.0,0.7718]
[1739629547921,3.70446,2699.5,2699.0,0.7718]
[1739629548120,3.70446,2699.5,2699.0,4.47683]
[1739629548622,3.70446,2699.5,2699.0,0.7718]
[1739629548930,3.70465,2699.4,2699.0,0.7718]
[1739629549150,0.82774278,2699.5,2699.0,0.7718]
[1739629549361,3.7044,2699.5,2699.0,4.4768]
[1739629549668,7.40891,2699.5,2699.0,0.7718]
[1739629549895,3.7044,2699.5,2699.0,0.7718]
[1739629550048,3.7044,2699.5,2699.0,4.47687]
[1739629550896,0.266,2699.6,2699.1,3.70492]
[1739629551191,0.266,2699.6,2699.1,3.74187747]
[1739629551347,4.74449,2699.7,2699.1,4.19324522]
[1739629551548,0.266,2699.8,2699.4,0.7718]
[1739629552615,3.97008,2699.8,2699.4,0.7718]
[1739629553457,3.70413,2699.7,2699.4,0.7718]
[1739629554408,0.266,2699.8,2699.4,0.7718]
[1739629555279,3.96998,2699.8,2699.4,0.7718]
[1739629556064,3.70377,2700.0,2699.4,4.47625]
[1739629556408,3.96977,2700.0,2699.5,0.68647789]
[1739629557253,3.70385,2699.9,2699.5,0.68647789]
[1739629557415,3.70385,2699.9,2699.5,4.39085789]
[1739629557582,0.266,2700.0,2699.5,4.39085789]
[1739629557775,0.266,2700.0,2699.6,0.51996996]
[1739629557976,3.96975,2700.0,2699.6,0.51996996]
[1739629558176,4.74396,2700.1,2699.6,0.51996996]
[1739629558717,3.96966,2700.1,2699.6,4.22419996]
[1739629559009,3.96966,2700.1,2699.6,0.51996996]
[1739629559217,3.70372,2700.0,2699.5,3.70434]
[1739629559999,3.70372,2700.0,2699.4,0.7718]
[1739629560195,3.70372,2700.0,2699.4,4.47631]
[1739629560382,3.70372,2700.0,2699.6,0.7333106]
[1739629560584,3.70393,2699.9,2699.6,0.7333106]
[1739629560806,3.70405,2699.8,2699.6,0.7333106]
[1739629561040,4.53215,2699.8,2699.6,0.7333106]
[1739629561197,0.8281,2699.8,2699.4,0.7718]
[1739629561401,3.70385,2699.9,2699.4,5.68194996]
[1739629562139,3.70385,2699.9,2699.4,5.68184996]
[1739629562437,3.96964,2700.1,2699.7,0.7611]
[1739629562942,3.70364,2700.1,2699.7,0.7611]
[1739629563506,3.70372,2700.0,2699.7,0.7611]
[1739629564908,0.8281,2699.6,2699.1,6.59246775]
[1739629565107,3.70452,2699.4,2699.1,1.21246775]
[1739629565422,3.70452,2699.4,2698.9,3.70511]
[1739629565423,3.70487,2699.2,2698.9,0.7611]
[1739629565787,3.70507,2699.0,2698.6,0.7611]
[1739629566011,3.7053,2698.9,2698.6,0.7611]
[1739629566212,3.70556,2698.7,2698.4,0.7611]
[1739629566412,3.70556,2698.7,2698.3,8.316]
[1739629566605,3.70556,2698.7,2698.3,10.132332]
[1739629566788,0.266,2698.6,2698.3,8.316]
[1739629567004,0.266,2698.6,2697.8,4.46773]
[1739629567203,3.70588,2698.5,2697.8,0.7611]
[1739629567402,3.70607,2698.3,2697.8,0.7611]
[1739629568308,3.7059,2698.4,2697.8,4.4678]
[1739629568493,3.7059,2698.4,2697.9,0.44678]
[1739629569026,3.70623,2698.2,2697.8,0.7611]
[1739629570892,0.8281,2698.7,2698.1,0.72945264]
[1739629571096,3.97171,2698.6,2698.1,0.72945264]
[1739629571657,0.266,2698.7,2698.3,0.7611]
[1739629571951,0.266,2698.7,2698.4,3.74293516]
[1739629572095,0.266,2698.7,2698.3,0.7611]
[1739629572696,3.70513,2699.0,2698.3,0.7611]
[1739629572933,3.97221,2698.9,2698.3,5.03141981]
[1739629573143,3.70545,2698.8,2698.3,1.32548981]
[1739629573315,3.70585,2698.5,2698.1,0.8231]
[1739629574713,8.17182,2698.7,2698.1,0.8231]
[1739629574918,3.70564,2698.6,2698.1,0.8231]
[1739629575432,4.46622,2698.7,2698.1,0.8231]
[1739629575632,0.267,2698.7,2698.3,3.70601]
[1739629575834,0.267,2698.7,2698.4,4.52897]
[1739629576045,0.267,2698.7,2698.6,3.70562]
[1739629576202,4.46514,2699.5,2698.6,4.52872]
[1739629576406,4.46514,2699.5,2698.3,3.5326678]
[1739629576407,0.267,2699.4,2699.0,0.8231]
[1739629576607,3.9716,2699.4,2699.0,0.8231]
[1739629576804,4.739204,2699.4,2699.0,0.8231]
[1739629577442,1.034604,2699.4,2699.0,0.8231]
[1739629577629,0.267,2699.4,2699.0,0.8231]
[1739629577944,0.7607,2699.8,2699.0,0.8231]
[1739629577945,3.70426,2699.6,2699.0,4.52808]
[1739629578119,3.70449,2699.5,2699.0,0.8231]
[1739629578315,3.70464,2699.4,2698.6,3.70556]
[1739629578528,3.70477,2699.3,2698.7,4.52849]
[1739629578734,3.70464,2699.4,2698.8,3.70532]
[1739629579031,3.70464,2699.4,2698.8,3.70526]
[1739629579230,3.70463,2699.4,2698.8,3.70526]
[1739629580538,4.46501,2699.6,2699.1,0.8231]
[1739629580740,3.70442,2699.5,2699.1,0.8231]
[1739629580910,7.40869,2699.6,2699.1,0.8231]
[1739629581112,4.471879,2699.6,2699.1,0.8231]
[1739629582143,0.767569,2699.6,2699.1,0.8231]
[1739629582321,3.70479,2699.3,2698.9,0.8231]
[1739629582921,7.740294,2699.0,2698.9,0.8231]
[1739629586048,7.740294,2699.0,2698.9,4.52831]
[1739629586543,7.740294,2699.0,2698.9,0.8231]
[1739629586846,7.740294,2699.0,2698.9,4.52831]
[1739629587046,7.740294,2699.0,2698.9,5.42592291]
[1739629588547,7.740294,2699.0,2698.9,0.8231]
[1739629591620,7.740294,2699.0,2698.6,0.8231]
[1739629591934,11.445364,2699.0,2698.6,0.8231]
[1739629592550,12.201164,2699.0,2698.4,0.8077]
[1739629592756,13.4212804,2699.0,2698.4,1.53829834]
[1739629592920,3.70542,2698.8,2698.4,1.53829834]
[1739629593124,3.70559,2698.7,2698.4,1.53829834]
[1739629593860,3.70559,2698.7,2698.4,0.8077]
[1739629594032,3.70576,2698.5,2698.4,0.8077]
[1739629594234,3.70576,2698.5,2698.1,8.84883611]
[1739629594235,3.7059,2698.4,2698.1,9.1247]
[1739629594438,3.70612,2698.3,2698.1,8.317]
[1739629594770,4.46156,2698.5,2698.1,8.317]
[1739629595242,3.70591,2698.4,2698.1,8.317]
[1739629596458,0.7558,2698.5,2698.1,8.317]
[1739629596459,3.70576,2698.5,2698.1,8.317]
[1739629597461,0.268,2698.6,2698.1,8.317]
[1739629597633,3.70543,2698.8,2698.2,0.8077]
[1739629597820,7.740294,2699.0,2698.4,0.8077]
[1739629598026,3.70529,2698.9,2698.4,0.8077]
[1739629598730,11.445444,2699.0,2698.4,4.51355]
[1739629599255,3.70522,2698.9,2698.4,4.51355]
[1739629599427,3.70522,2698.9,2698.4,0.8077]
[1739629599772,15.150614,2699.0,2698.4,4.51359]
[1739629600358,11.445444,2699.0,2698.4,5.23923895]
[1739629600565,3.70521,2698.9,2698.4,6.13372585]
[1739629601062,11.445444,2699.0,2698.5,3.70574]
[1739629601258,7.740294,2699.0,2698.5,3.70567]
[1739629601466,7.740294,2699.0,2698.6,3.7056]
[1739629601758,7.740294,2699.0,2698.5,3.70567]
[1739629602247,3.70522,2698.9,2698.4,2.42786585]
[1739629602858,11.445474,2699.0,2698.4,6.13374585]
[1739629603153,7.740294,2699.0,2698.6,0.8027]
[1739629603332,7.740294,2699.0,2698.6,4.50827]
[1739629603659,11.445414,2699.0,2698.6,0.8027]
[1739629604465,3.70527,2698.9,2698.6,0.8027]
[1739629606157,3.70527,2698.9,2698.1,1.35874862]
[1739629606158,3.0318,2698.9,2698.1,0.8027]
[1739629606353,3.70602,2698.4,2698.0,5.38]
[1739629606879,3.70543,2698.8,2698.2,0.8027]
[1739629607175,3.70543,2698.8,2698.2,5.26526347]
[1739629607570,3.70543,2698.8,2698.3,3.70599]
[1739629607768,3.70591,2698.4,2698.2,0.8027]
[1739629607967,3.70591,2698.4,2698.1,0.74611045]
[1739629609306,3.70604,2698.3,2698.1,0.74611045]
[1739629609582,3.70604,2698.3,2698.0,6.1827]
[1739629609884,0.268,2698.4,2698.0,6.1827]
[1739629610251,3.97397,2698.4,2698.0,6.93325776]
[1739629610450,3.70605,2698.3,2698.0,6.13055776]
[1739629610697,3.70605,2698.3,2697.8,0.8027]
[1739629610698,3.70627,2698.2,2697.8,0.8027]
[1739629611353,3.70639,2698.1,2697.6,9.1197]
[1739629611754,3.70639,2698.1,2697.6,12.82665]
[1739629612074,3.70639,2698.1,2697.9,0.72772823]
[1739629612853,3.70621,2698.2,2697.9,0.72772823]
[1739629613275,3.7061,2698.3,2697.9,0.72772823]
[1739629613484,3.70619,2698.2,2697.9,0.72772823]
[1739629614690,3.7061,2698.3,2697.9,0.72772823]
[1739629614890,3.70631,2698.1,2697.9,0.72772823]
[1739629615390,0.7775886,2698.2,2697.9,0.72772823]
[1739629615602,3.70586,2698.5,2698.0,0.7743]
[1739629615770,3.70593,2698.4,2698.0,0.7743]
[1739629616285,3.70605,2698.3,2698.0,0.7743]
[1739629616505,3.70593,2698.4,2698.0,0.7743]
[1739629616857,3.70593,2698.4,2697.9,0.72772823]
[1739629617063,3.70619,2698.2,2697.9,0.72772823]
[1739629619491,3.70607,2698.3,2697.9,0.72772823]
[1739629620695,7.41194,2698.4,2697.9,0.72772823]
[1739629620895,3.70605,2698.3,2697.9,0.72772823]
[1739629622689,3.70593,2698.4,2697.9,0.72772823]
[1739629622871,3.70593,2698.4,2697.9,4.43430823]
[1739629623499,5.1286342,2698.8,2698.2,7.41224]
[1739629623500,0.268,2698.5,2698.2,7.41224]
[1739629623809,11.445444,2699.0,2698.5,3.70563]
[1739629623810,7.740294,2699.0,2698.5,3.70563]
[1739629623963,7.740294,2699.0,2698.7,3.70545]
[1739629624778,0.268,2699.1,2698.7,3.70545]
[1739629625577,3.7046,2699.4,2698.7,3.70545]
[1739629625873,3.70432,2699.6,2698.9,3.7052]
[1739629625874,0.268,2699.3,2698.9,3.7052]
[1739629626201,0.268,2699.4,2699.0,3.70497]
[1739629626402,0.268,2699.4,2699.1,0.8211]
[1739629626993,0.268,2699.5,2699.1,4.526]
[1739629627162,3.70346,2700.2,2699.4,0.8211]
[1739629627361,3.70393,2699.9,2699.4,0.8211]
[1739629627564,3.7038,2700.0,2699.4,0.8211]
[1739629627794,3.70385,2699.9,2699.4,0.8211]
[1739629627968,3.7038,2700.0,2699.4,0.8211]
[1739629628177,3.7038,2700.0,2699.4,4.52561]
[1739629628422,3.7038,2700.0,2699.4,5.348633]
[1739629628776,0.268,2700.0,2699.6,3.70422]
[1739629628982,0.268,2700.0,2699.5,3.70426]
[1739629629673,0.268,2700.0,2699.5,7.40854]
[1739629629983,0.268,2700.0,2699.6,3.70414]
[1739629630179,0.268,2700.0,2699.5,3.70426]
[1739629630383,0.268,2700.0,2699.6,3.70422]
[1739629630584,0.268,2700.0,2699.5,4.68403901]
[1739629630785,0.268,2700.0,2699.7,0.8211]
[1739629632903,3.70347,2700.2,2699.7,0.8211]
[1739629633082,3.97147,2700.2,2699.7,0.8211]
[1739629635073,3.92239838,2700.2,2699.7,0.8211]
[1739629635275,3.65439838,2700.2,2699.7,1.7420359]
[1739629635475,0.268,2700.2,2699.7,5.4460259]
[1739629635675,3.70337,2700.3,2699.7,5.4460259]
[1739629635873,3.97137,2700.3,2699.7,5.4460259]
[1739629637376,3.97137,2700.3,2699.8,3.70394]
[1739629637710,0.802,2700.6,2699.8,0.91501959]
[1739629638008,3.70296,2700.6,2700.1,0.7905]
[1739629638216,0.268,2700.5,2700.1,0.7905]
[1739629638507,0.268,2700.5,2700.2,3.7033]
[1739629639216,3.9711,2700.5,2700.1,0.7905]
[1739629639519,3.70289,2700.6,2700.1,4.49404]
[1739629639725,3.70289,2700.6,2700.1,5.313804]
[1739629639933,7.40589,2700.6,2700.1,1.610264]
[1739629640071,3.70289,2700.6,2700.1,1.610264]
[1739629641198,3.70315,2700.5,2699.8,3.7039]
[1739629641404,3.70327,2700.4,2699.8,4.4944]
[1739629641708,3.70359,2700.1,2699.5,0.7905]
[1739629641908,3.70359,2700.1,2699.6,4.44470083]
[1739629642674,3.70359,2700.1,2699.6,0.74046083]
[1739629642875,3.70373,2700.0,2699.5,0.7905]
[1739629643094,3.70373,2700.0,2699.6,0.819936]
[1739629644235,3.70384,2699.9,2699.6,0.819936]
[1739629644456,3.70386,2699.9,2699.5,0.7905]
[1739629644636,3.70411,2699.7,2699.5,0.7905]
[1739629644944,3.70411,2699.7,2699.3,5.38]
[1739629645288,4.48751,2699.8,2699.3,9.08466]
[1739629646026,3.70412,2699.7,2699.3,5.38]
[1739629646227,3.70412,2699.7,2699.2,4.49521]
[1739629646725,0.7835,2699.8,2699.2,0.7905]
[1739629647025,3.70441,2699.5,2699.2,0.7905]
[1739629647190,3.70441,2699.5,2699.0,4.4955]
[1739629648123,3.70441,2699.5,2699.2,0.74516354]
[1739629649207,3.70466,2699.3,2699.2,0.74516354]
[1739629649811,3.70466,2699.3,2698.8,0.8273]
[1739629650125,3.70487,2699.2,2698.8,0.8273]
[1739629650520,3.70487,2699.2,2699.1,0.72613422]
[1739629650736,3.70487,2699.2,2698.8,0.8273]
[1739629651034,4.45837,2699.4,2699.0,0.75911001]
[1739629651832,3.70467,2699.3,2699.0,0.75911001]
[1739629654240,3.70467,2699.3,2698.8,1.280577]
[1739629654806,3.70483,2699.2,2698.8,1.280577]
[1739629655113,3.70521,2698.9,2698.8,0.75955463]
[1739629655324,7.41034,2699.0,2698.8,0.75955463]
[1739629655543,3.70521,2698.9,2698.6,0.8273]
[1739629656107,3.70545,2698.8,2698.5,8.317]
[1739629656311,3.70548,2698.7,2698.6,0.75811364]
[1739629656530,3.70548,2698.7,2698.5,8.317]
[1739629656841,3.70562,2698.6,2698.5,8.317]
[1739629657043,3.70545,2698.8,2698.5,8.317]
[1739629657540,7.4109,2698.8,2698.5,8.317]
[1739629657924,3.70545,2698.8,2698.5,8.317]
[1739629658909,4.4591,2698.9,2698.5,8.317]
[1739629659109,3.70511,2699.0,2698.5,8.317]
[1739629659412,3.70528,2698.9,2698.5,8.317]
[1739629659909,3.70511,2699.0,2698.5,8.317]
[1739629660239,0.267,2699.1,2698.7,0.8273]
[1739629660439,3.97194,2699.1,2698.7,0.8273]
[1739629661443,0.267,2699.1,2698.7,0.8273]
[1739629661655,3.70474,2699.3,2698.8,3.70535]
[1739629661810,3.97174,2699.3,2698.8,3.70535]
[1739629662007,3.70494,2699.1,2698.8,0.82752132]
[1739629662212,3.7051,2699.0,2698.7,0.8273]
[1739629662711,4.45956,2698.5,2698.4,0.72928323]
[1739629662943,3.70665,2697.9,2697.7,0.8273]
[1739629663113,3.70632,2698.1,2697.7,0.8273]
[1739629663315,3.70639,2698.1,2697.8,0.73073202]
[1739629664738,3.70639,2698.1,2697.5,12.02212]
[1739629664739,3.70639,2698.1,2697.5,9.1041]
[1739629664945,3.70639,2698.1,2697.6,3.70696]
[1739629665142,0.267,2698.0,2697.7,0.77810089]
[1739629665446,0.267,2698.0,2697.8,3.7067]
[1739629665946,0.267,2698.0,2697.6,3.7069]
[1739629666856,0.267,2698.0,2697.6,4.45630982]
[1739629667146,0.267,2698.0,2697.7,3.70684]
[1739629667738,0.267,2698.0,2697.7,3.74390556]
[1739629668047,0.267,2698.0,2697.8,3.70669]
[1739629668624,3.7058,2698.5,2697.8,3.70669]
[1739629668953,5.7576678,2698.8,2697.9,0.7891]
[1739629668954,0.8059,2698.8,2697.9,0.7891]
[1739629669141,4.77793,2699.1,2698.0,0.8261558]
[1739629669332,3.70507,2699.0,2698.5,0.7891]
[1739629669660,4.77793,2699.1,2698.5,4.49484]
[1739629670020,8.48296,2699.1,2698.5,4.49484]
[1739629670238,8.48297,2699.1,2698.5,4.49484]
[1739629670558,3.70521,2698.9,2698.4,3.7058]
[1739629671327,3.70537,2698.8,2698.2,4.49519]
[1739629671531,3.70537,2698.8,2698.3,3.70602]
[1739629672268,3.70515,2699.0,2698.2,4.49519]
[1739629672474,3.70515,2699.0,2698.4,3.70587]
[1739629672963,9.1588748,2699.1,2698.4,3.70587]
[1739629673173,3.70552,2698.7,2698.2,4.49519]
[1739629673473,3.70524,2698.9,2698.3,3.70601]
[1739629674752,1.0729,2699.1,2698.6,3.7055]
[1739629675090,4.77796,2699.1,2698.6,0.7891]
[1739629675250,5.255732,2699.1,2698.6,0.7891]
[1739629675637,3.7051,2699.0,2698.4,4.49488]
[1739629675843,7.41026,2699.0,2698.4,4.49488]
[1739629676072,3.70537,2698.8,2698.4,0.7891]
[1739629676229,3.70537,2698.8,2698.3,3.70603]
[1739629676934,3.70515,2699.0,2698.3,3.70603]
[1739629677170,5.255732,2699.1,2698.4,7.41159]
[1739629677333,3.70511,2699.0,2698.4,3.70577]
[1739629677966,4.51114,2698.9,2698.4,3.70577]
[1739629679235,3.70511,2699.0,2698.5,0.813]
[1739629679444,0.8001,2699.2,2698.7,3.70541]
[1739629679654,0.267,2699.1,2698.6,3.70554]
[1739629679848,0.267,2699.1,2698.6,3.70552]
[1739629680283,1.11467,2699.1,2698.4,3.70582]
[1739629680482,3.70514,2699.0,2698.4,3.70582]
[1739629680938,3.97205,2699.1,2698.4,3.70582]
[1739629681170,3.70521,2698.9,2698.4,3.70582]
[1739629681358,3.70521,2698.9,2698.2,5.26103686]
[1739629681564,3.70521,2698.9,2698.3,3.70596]
[1739629681814,7.67706,2699.1,2698.4,3.70577]
[1739629682114,3.70508,2699.0,2698.5,3.70569]
[1739629683715,7.67704,2699.1,2698.5,3.70569]
[1739629684398,0.267,2699.0,2698.5,3.70569]
[1739629684938,0.267,2699.0,2698.4,3.70577]
[1739629684939,0.267,2699.0,2698.6,3.70561]
[1739629685104,3.97207,2699.0,2698.6,3.70561]
[1739629685589,0.267,2699.0,2698.6,3.70561]
[1739629686296,0.267,2699.0,2698.7,0.813]
[1739629686881,3.97209,2699.0,2698.5,0.813]
[1739629687082,4.449309,2699.0,2698.5,0.813]
[1739629687602,4.449309,2699.0,2698.5,4.51873]
[1739629687767,4.449309,2699.0,2698.5,0.813]
[1739629687970,8.154469,2699.0,2698.5,0.813]
[1739629688192,4.449309,2699.0,2698.5,0.813]
[1739629688399,4.449309,2699.0,2698.5,4.51873]
[1739629688804,3.97209,2699.0,2698.5,4.51873]
[1739629690788,0.267,2699.0,2698.6,3.70555]
[1739629690988,0.267,2699.0,2698.7,3.70547]
[1739629691224,3.70494,2699.1,2698.5,8.22435]
[1739629691393,0.266,2699.0,2698.5,8.22435]
[1739629692123,3.70494,2699.1,2698.7,3.70546]
[1739629692124,0.266,2699.1,2698.7,3.70546]
[1739629692333,0.266,2699.1,2698.8,3.70534]
[1739629692830,0.266,2699.1,2698.7,3.70546]
[1739629692978,0.266,2699.1,2698.7,3.70541]
[1739629693823,0.266,2699.1,2698.8,3.70527]
[1739629694127,0.266,2699.1,2698.5,1.635435]
[1739629694342,0.266,2699.1,2557.1,0.005]
[1739629694343,5.31,2699.5,2698.7,0.8301]
[1739629694627,0.266,2699.4,2699.1,0.8301]
[1739629695138,0.266,2699.4,2698.8,3.70526]
[1739629695139,0.7792,2698.8,2698.2,3.70608]
[1739629695430,3.70473,2699.3,2698.8,3.70521]
[1739629695431,0.7792,2699.3,2698.8,3.70521]
[1739629695596,1.0502,2699.3,2698.8,3.70521]
[1739629695986,1.0502,2699.3,2698.8,3.70533]
[1739629696503,0.271,2699.3,2698.9,0.8301]
[1739629697915,3.70454,2699.4,2698.9,0.8301]
[1739629698940,3.70466,2699.3,2698.9,0.8301]
[1739629699239,3.70454,2699.4,2698.9,0.8301]
[1739629701442,1.0502,2699.5,2698.9,0.8301]
[1739629701736,1.0492,2699.5,2699.0,3.70503]
[1739629702223,4.75362,2699.5,2698.9,1.35605019]
[1739629702424,3.70467,2699.3,2698.9,0.8301]
[1739629704361,4.75364,2699.5,2698.9,0.8301]
[1739629704562,4.75364,2699.5,2699.0,3.70503]
[1739629704969,8.45814,2699.5,2698.9,0.8301]
[1739629705119,3.70461,2699.4,2698.9,0.8301]
[1739629705320,3.70461,2699.4,2698.9,4.53519]
[1739629706138,1.0492,2699.5,2698.9,0.8301]
[1739629706341,1.0492,2699.5,2699.0,3.70507]
[1739629706541,0.7792,2699.5,2699.0,3.70507]
[1739629706736,1.0492,2699.5,2699.0,3.70498]
[1739629709150,1.0492,2699.5,2699.0,7.40997]
[1739629709348,1.0492,2699.5,2699.0,3.70498]
[1739629709735,4.75362,2699.5,2699.0,3.70498]
[1739629710853,1.0492,2699.5,2699.1,3.70492]
[1739629711269,1.0492,2699.5,2699.0,3.70498]
[1739629711656,1.0492,2699.5,2699.0,7.40998]
[1739629711857,0.27,2699.5,2699.1,3.70491]
[1739629712159,4.48935,2699.8,2699.1,3.70491]
[1739629712367,3.97312,2699.7,2699.2,3.70474]
[1739629713553,0.269,2699.8,2699.4,3.70445]
[1739629713886,0.269,2699.8,2699.5,0.03704029]
[1739629714182,0.269,2699.8,2699.4,3.70445]
[1739629714380,0.269,2699.8,2699.4,3.70442]
[1739629714580,0.269,2699.8,2699.4,4.2299285]
[1739629714755,0.7853,2700.0,2699.4,4.2299185]
[1739629714958,4.489,2700.0,2699.5,3.70429]
[1739629715883,0.7853,2700.0,2699.6,3.70424]
[1739629716781,3.0103,2700.0,2699.5,3.70431]
[1739629716951,0.7853,2700.0,2699.5,3.70431]
[1739629717145,0.7853,2700.0,2699.5,4.65431968]
[1739629717875,4.489,2700.0,2699.5,0.95000968]
[1739629718079,4.489,2700.0,2699.3,1.56586831]
[1739629718390,4.489,2700.0,2699.5,3.70438]
[1739629719790,0.7853,2700.0,2699.6,3.70424]
[1739629721158,0.7853,2700.0,2699.5,3.70438]
[1739629721359,0.7853,2700.0,2699.4,3.70443]
[1739629721360,3.70388,2699.9,2699.4,3.70443]
[1739629721653,0.7853,2700.0,2699.4,4.23145983]
[1739629721870,4.48899,2700.1,2699.6,3.70424]
[1739629723524,0.7853,2700.1,2699.6,3.70417]
[1739629723729,4.48889,2700.1,2699.7,0.781]
[1739629724599,0.7803,2700.3,2699.8,3.7039]
[1739629724803,1.0483,2700.3,2699.8,3.7039]
[1739629725409,0.7803,2700.3,2699.8,3.7039]
[1739629725612,0.7803,2700.3,2699.9,4.4473757]
[1739629725811,0.7803,2700.3,2699.9,0.7436357]
[1739629726095,0.7803,2700.3,2699.9,5.01553936]
[1739629726523,0.7803,2700.3,2700.0,3.70369]
[1739629727610,0.7803,2700.3,2699.9,5.01553936]
[1739629728139,0.7803,2700.3,2700.0,3.70365]
[1739629728441,0.7803,2700.3,2699.9,5.01551936]
[1739629730125,0.7803,2700.3,2699.9,0.56807366]
[1739629730306,0.7803,2700.3,2699.8,3.70388]
[1739629730888,0.7803,2700.3,2699.9,3.70383]
[1739629732323,4.48361,2700.3,2699.8,4.44988314]
[1739629732524,0.7803,2700.3,2699.8,0.74591314]
[1739629732730,4.48364,2700.3,2699.8,4.44986314]